[Event "Live Chess"]
[Site "Chess.com"]
[Date "2024.06.02"]
[Round "-"]
[White "Cruiseylee78"]
[Black "Pablo_dmp"]
[Result "0-1"]
[WhiteElo "1682"]
[BlackElo "1987"]
[TimeControl "300"]
[EndTime "8:45:33 PDT"]
[Termination "Pablo_dmp won by resignation"]

1. d4 {[%clk 0:04:59.7]} 1... Nf6 {[%clk 0:04:58.4]} 2. Bf4 {[%clk 0:04:59.3]}
2... c5 {[%clk 0:04:57.9]} 3. e3 {[%clk 0:04:58.4]} 3... Nc6 {[%clk 0:04:56.1]}
4. c3 {[%clk 0:04:57.9]} 4... g6 {[%clk 0:04:54.6]} 5. Bd3 {[%clk 0:04:56.7]}
5... Bg7 {[%clk 0:04:52]} 6. Qc2 {[%clk 0:04:56]} 6... Nd5 {[%clk 0:04:50]} 7.
Bc4 {[%clk 0:04:52.5]} 7... Nb6 {[%clk 0:04:47.1]} 8. Bd3 {[%clk 0:04:51.6]}
8... c4 {[%clk 0:04:43.4]} 9. Be2 {[%clk 0:04:50.4]} 9... d5 {[%clk 0:04:42.2]}
10. Nf3 {[%clk 0:04:49.3]} 10... Bf5 {[%clk 0:04:37.9]} 11. Qc1 {[%clk
0:04:40.1]} 11... O-O {[%clk 0:04:35.6]} 12. Nbd2 {[%clk 0:04:34.2]} 12... f6
{[%clk 0:04:33]} 13. h3 {[%clk 0:04:30]} 13... e5 {[%clk 0:04:31.5]} 14. g4
{[%clk 0:04:26.7]} 14... Be6 {[%clk 0:04:24.6]} 15. Bg3 {[%clk 0:04:22.6]} 15...
a5 {[%clk 0:04:22.2]} 16. Qc2 {[%clk 0:04:11.8]} 16... Rc8 {[%clk 0:04:13]} 17.
b3 {[%clk 0:04:05.8]} 17... Qe7 {[%clk 0:04:01.2]} 18. bxc4 {[%clk 0:04:00.7]}
18... Nxc4 {[%clk 0:04:01.1]} 19. Bxc4 {[%clk 0:03:59.3]} 19... dxc4 {[%clk
0:04:01]} 20. Rb1 {[%clk 0:03:49.6]} 20... Rcd8 {[%clk 0:03:57.5]} 21. dxe5
{[%clk 0:03:33]} 21... fxe5 {[%clk 0:03:32.6]} 22. Bh4 {[%clk 0:03:26.2]} 22...
Bf6 {[%clk 0:03:24.3]} 23. Bxf6 {[%clk 0:03:24.2]} 23... Qxf6 {[%clk 0:03:17.6]}
24. Rxb7 {[%clk 0:03:21.8]} 24... Bd5 {[%clk 0:03:07.5]} 25. e4 {[%clk
0:03:18.4]} 25... Nd4 {[%clk 0:03:02]} 26. cxd4 {[%clk 0:02:54]} 26... Bxb7
{[%clk 0:02:59.9]} 27. dxe5 {[%clk 0:02:51.2]} 27... Qf4 {[%clk 0:02:56.1]} 28.
Qxc4+ {[%clk 0:02:46.6]} 28... Kh8 {[%clk 0:02:44.2]} 29. Ke2 {[%clk 0:02:38.5]}
29... Ra8 {[%clk 0:02:18.5]} 30. Qc7 {[%clk 0:02:26.9]} 30... Ba6+ {[%clk
0:02:16.7]} 31. Ke1 {[%clk 0:02:18.1]} 31... Rac8 {[%clk 0:02:13.6]} 0-1

[Event "Live Chess"]
[Site "Chess.com"]
[Date "2024.06.02"]
[Round "-"]
[White "FlyingChessKestrel13"]
[Black "PatientChessPapa"]
[Result "1-0"]
[WhiteElo "2079"]
[BlackElo "797"]
[TimeControl "300"]
[EndTime "8:45:39 PDT"]
[Termination "FlyingChessKestrel13 won on time"]

1. e4 {[%clk 0:04:57.8]} 1... d5 {[%clk 0:04:55.5]} 2. exd5 {[%clk 0:04:56]}
2... Nf6 {[%clk 0:04:53.9]} 3. c4 {[%clk 0:04:54.1]} 3... e6 {[%clk 0:04:51.9]}
4. dxe6 {[%clk 0:04:52.6]} 4... Bxe6 {[%clk 0:04:48]} 5. Nc3 {[%clk 0:04:51.6]}
5... Nc6 {[%clk 0:04:39.4]} 6. Nf3 {[%clk 0:04:42.4]} 6... Qe7 {[%clk 0:04:37]}
7. Qe2 {[%clk 0:04:39.3]} 7... O-O-O {[%clk 0:04:24.7]} 8. a3 {[%clk 0:04:34.2]}
8... Bf5 {[%clk 0:03:22.2]} 9. Qxe7 {[%clk 0:04:29.4]} 9... Bxe7 {[%clk
0:03:20.7]} 10. Be2 {[%clk 0:04:21.1]} 10... Rhe8 {[%clk 0:03:02.5]} 11. O-O
{[%clk 0:04:19.7]} 11... Bc5 {[%clk 0:02:51.7]} 12. b4 {[%clk 0:04:16.2]} 12...
Bd4 {[%clk 0:02:45.1]} 13. Nxd4 {[%clk 0:04:14.5]} 13... Nxd4 {[%clk 0:02:41.6]}
14. Bd1 {[%clk 0:04:09.5]} 14... Ng4 {[%clk 0:02:07.8]} 15. Bxg4 {[%clk
0:04:01.8]} 15... Bxg4 {[%clk 0:02:06]} 16. h3 {[%clk 0:04:00.8]} 16... Bh5
{[%clk 0:01:55.8]} 17. d3 {[%clk 0:03:51.6]} 17... f6 {[%clk 0:01:31.2]} 18. Ra2
{[%clk 0:03:46.9]} 18... g5 {[%clk 0:01:15.5]} 19. Be3 {[%clk 0:03:44.6]} 19...
Nf5 {[%clk 0:01:01.7]} 20. Bd2 {[%clk 0:03:17.2]} 20... Bg6 {[%clk 0:00:53.5]}
21. Ne4 {[%clk 0:03:11.5]} 21... Rxd3 {[%clk 0:00:32.6]} 22. Nxf6 {[%clk
0:03:08.6]} 22... Red8 {[%clk 0:00:31]} 23. Bxg5 {[%clk 0:03:07.4]} 23... Rd2
{[%clk 0:00:13.5]} 24. Rxd2 {[%clk 0:03:03.6]} 24... Rxd2 {[%clk 0:00:07.4]} 25.
Bxd2 {[%clk 0:03:02.1]} 1-0

[Event "Live Chess"]
[Site "Chess.com"]
[Date "2024.06.02"]
[Round "-"]
[White "Frankie_Badacsonyi"]
[Black "bobby_jamesFischer86"]
[Result "1-0"]
[WhiteElo "2350"]
[BlackElo "1630"]
[TimeControl "300"]
[EndTime "8:45:43 PDT"]
[Termination "Frankie_Badacsonyi won by resignation"]

1. d4 {[%clk 0:04:58.6]} 1... d5 {[%clk 0:04:57.6]} 2. e3 {[%clk 0:04:58.5]}
2... c5 {[%clk 0:04:56.1]} 3. Bd3 {[%clk 0:04:58.4]} 3... Nc6 {[%clk 0:04:55]}
4. c3 {[%clk 0:04:56.9]} 4... c4 {[%clk 0:04:53.5]} 5. Be2 {[%clk 0:04:55.6]}
5... Nf6 {[%clk 0:04:52.6]} 6. f4 {[%clk 0:04:54.1]} 6... Bf5 {[%clk 0:04:50.8]}
7. Nf3 {[%clk 0:04:52.5]} 7... e6 {[%clk 0:04:48]} 8. O-O {[%clk 0:04:52]} 8...
Bd6 {[%clk 0:04:46.8]} 9. Nbd2 {[%clk 0:04:51.2]} 9... O-O {[%clk 0:04:45.2]}
10. Ne5 {[%clk 0:04:50.8]} 10... Ne4 {[%clk 0:04:42]} 11. Nxe4 {[%clk
0:04:47.3]} 11... Bxe4 {[%clk 0:04:40.8]} 12. Bf3 {[%clk 0:04:45]} 12... Bxf3
{[%clk 0:04:38.9]} 13. Rxf3 {[%clk 0:04:44.9]} 13... f6 {[%clk 0:04:38.3]} 14.
Nxc6 {[%clk 0:04:42.1]} 14... bxc6 {[%clk 0:04:36.4]} 15. Qe2 {[%clk 0:04:41.7]}
15... e5 {[%clk 0:04:30.3]} 16. Rf1 {[%clk 0:04:38.4]} 16... e4 {[%clk
0:04:21.2]} 17. b3 {[%clk 0:04:30.9]} 17... cxb3 {[%clk 0:04:18.1]} 18. axb3
{[%clk 0:04:30.8]} 18... a5 {[%clk 0:04:12.6]} 19. c4 {[%clk 0:04:28.1]} 19...
Qb8 {[%clk 0:04:02.4]} 20. Qc2 {[%clk 0:04:23.4]} 20... Bb4 {[%clk 0:03:56.3]}
21. Ba3 {[%clk 0:04:18.4]} 21... Qb7 {[%clk 0:03:53]} 22. Bxb4 {[%clk
0:04:11.6]} 22... axb4 {[%clk 0:03:48.6]} 23. cxd5 {[%clk 0:04:10.3]} 23... cxd5
{[%clk 0:03:46.2]} 24. Qc5 {[%clk 0:03:48.7]} 24... Rxa1 {[%clk 0:03:31.7]} 25.
Rxa1 {[%clk 0:03:46.7]} 25... Ra8 {[%clk 0:03:30.2]} 26. Rxa8+ {[%clk
0:03:43.4]} 26... Qxa8 {[%clk 0:03:28.5]} 27. Qxb4 {[%clk 0:03:37.5]} 27... Qa1+
{[%clk 0:03:26]} 28. Kf2 {[%clk 0:03:36]} 28... Qb2+ {[%clk 0:03:24.2]} 29. Kg3
{[%clk 0:03:34.3]} 29... Qe2 {[%clk 0:03:15.1]} 30. Qc3 {[%clk 0:03:25.8]} 30...
h5 {[%clk 0:03:04.4]} 31. h3 {[%clk 0:03:21.6]} 31... g5 {[%clk 0:03:01.2]} 32.
fxg5 {[%clk 0:03:16.4]} 32... fxg5 {[%clk 0:03:00]} 33. Qc8+ {[%clk 0:03:13.5]}
33... Kg7 {[%clk 0:02:55.6]} 34. Qd7+ {[%clk 0:03:08.8]} 34... Kf8 {[%clk
0:02:50.4]} 35. Qd8+ {[%clk 0:03:07.6]} 35... Kf7 {[%clk 0:02:41.2]} 36. Qxg5
{[%clk 0:03:06.4]} 36... h4+ {[%clk 0:02:35.6]} 37. Kh2 {[%clk 0:03:00.4]} 37...
Qe1 {[%clk 0:02:24.3]} 38. b4 {[%clk 0:02:48.9]} 38... Qxb4 {[%clk 0:02:18.7]}
39. Qxd5+ {[%clk 0:02:47]} 39... Kf6 {[%clk 0:02:13.3]} 40. Qe5+ {[%clk
0:02:45.1]} 40... Kf7 {[%clk 0:02:08.8]} 41. Qxe4 {[%clk 0:02:43.3]} 41... Qe1
{[%clk 0:02:06.8]} 42. Qf4+ {[%clk 0:02:39.2]} 42... Ke6 {[%clk 0:02:04.3]} 43.
e4 {[%clk 0:02:37.3]} 43... Qd1 {[%clk 0:02:00.9]} 44. d5+ {[%clk 0:02:35.7]}
44... Ke7 {[%clk 0:01:59.2]} 45. Qxh4+ {[%clk 0:02:33.1]} 45... Kd6 {[%clk
0:01:57.4]} 46. Qf4+ {[%clk 0:02:28]} 46... Kc5 {[%clk 0:01:50.5]} 47. d6 {[%clk
0:02:27.5]} 1-0

[Event "Live Chess"]
[Site "Chess.com"]
[Date "2024.06.02"]
[Round "-"]
[White "Inglaterra"]
[Black "booktrunk"]
[Result "1-0"]
[WhiteElo "2049"]
[BlackElo "1472"]
[TimeControl "300"]
[EndTime "8:45:50 PDT"]
[Termination "Inglaterra won by checkmate"]

1. e4 {[%clk 0:04:57.9]} 1... d5 {[%clk 0:04:57.3]} 2. exd5 {[%clk 0:04:56.3]}
2... Qxd5 {[%clk 0:04:54.4]} 3. Nf3 {[%clk 0:04:55.7]} 3... Bg4 {[%clk
0:04:50.3]} 4. Be2 {[%clk 0:04:54.4]} 4... c6 {[%clk 0:04:47]} 5. O-O {[%clk
0:04:53.4]} 5... Nd7 {[%clk 0:04:44.1]} 6. d4 {[%clk 0:04:53]} 6... O-O-O {[%clk
0:04:41.7]} 7. h3 {[%clk 0:04:50.4]} 7... Be6 {[%clk 0:04:37.7]} 8. Be3 {[%clk
0:04:49.5]} 8... Ndf6 {[%clk 0:04:34.2]} 9. c4 {[%clk 0:04:47.1]} 9... Qa5
{[%clk 0:04:31.2]} 10. Nc3 {[%clk 0:04:37.2]} 10... Bd7 {[%clk 0:04:29.1]} 11.
a3 {[%clk 0:04:33.8]} 11... e6 {[%clk 0:04:27]} 12. b4 {[%clk 0:04:32.9]} 12...
Qc7 {[%clk 0:04:23.9]} 13. Qb3 {[%clk 0:04:30.5]} 13... Re8 {[%clk 0:04:15.9]}
14. c5 {[%clk 0:04:27.3]} 14... Kb8 {[%clk 0:04:05]} 15. a4 {[%clk 0:04:26.7]}
15... Bc8 {[%clk 0:04:03.1]} 16. b5 {[%clk 0:04:26.1]} 16... cxb5 {[%clk
0:04:01.5]} 17. axb5 {[%clk 0:04:23.8]} 17... Ne7 {[%clk 0:03:55.2]} 18. b6
{[%clk 0:04:22.3]} 18... axb6 {[%clk 0:03:52.6]} 19. cxb6 {[%clk 0:04:21.9]}
19... Qc6 {[%clk 0:03:49.7]} 20. Ra8+ {[%clk 0:04:15.7]} 20... Kxa8 {[%clk
0:03:46]} 21. Qa3+ {[%clk 0:04:15.3]} 21... Kb8 {[%clk 0:03:45.1]} 22. Qa7#
{[%clk 0:04:14.9]} 1-0

[Event "Live Chess"]
[Site "Chess.com"]
[Date "2024.06.02"]
[Round "-"]
[White "jimwad"]
[Black "NottheBishopSacrifice"]
[Result "1-0"]
[WhiteElo "1346"]
[BlackElo "2339"]
[TimeControl "300"]
[EndTime "8:45:56 PDT"]
[Termination "jimwad won by checkmate"]

1. d4 {[%clk 0:04:58.6]} 1... d5 {[%clk 0:04:58]} 2. c4 {[%clk 0:04:57.8]} 2...
e6 {[%clk 0:04:56.2]} 3. Nc3 {[%clk 0:04:56.9]} 3... Nf6 {[%clk 0:04:55.1]} 4.
Bg5 {[%clk 0:04:55.7]} 4... Be7 {[%clk 0:04:54.2]} 5. e3 {[%clk 0:04:55]} 5...
O-O {[%clk 0:04:53]} 6. Nf3 {[%clk 0:04:53.6]} 6... h6 {[%clk 0:04:52.2]} 7. Bh4
{[%clk 0:04:52.1]} 7... Ne4 {[%clk 0:04:51.1]} 8. Bxe7 {[%clk 0:04:50.5]} 8...
Qxe7 {[%clk 0:04:51]} 9. Nxe4 {[%clk 0:04:49.5]} 9... dxe4 {[%clk 0:04:50.6]}
10. Nd2 {[%clk 0:04:48.8]} 10... f5 {[%clk 0:04:50.2]} 11. c5 {[%clk 0:04:44.3]}
11... c6 {[%clk 0:04:48.5]} 12. b4 {[%clk 0:04:43.1]} 12... e5 {[%clk
0:04:47.3]} 13. Bc4+ {[%clk 0:04:40.7]} 13... Be6 {[%clk 0:04:44.9]} 14. O-O
{[%clk 0:04:33.9]} 14... exd4 {[%clk 0:04:41.5]} 15. exd4 {[%clk 0:04:32.8]}
15... Bxc4 {[%clk 0:04:40.8]} 16. Nxc4 {[%clk 0:04:31.6]} 16... Nd7 {[%clk
0:04:40]} 17. Re1 {[%clk 0:04:26.3]} 17... Nf6 {[%clk 0:04:37]} 18. f3 {[%clk
0:04:24.6]} 18... Nd5 {[%clk 0:04:35.3]} 19. fxe4 {[%clk 0:04:15.3]} 19... fxe4
{[%clk 0:04:35.2]} 20. Ne5 {[%clk 0:04:04.7]} 20... Qh4 {[%clk 0:04:29]} 21. Ng6
{[%clk 0:03:56.1]} 21... Qg5 {[%clk 0:04:27.7]} 22. Nxf8 {[%clk 0:03:54.7]}
22... Rxf8 {[%clk 0:04:27.3]} 23. Rxe4 {[%clk 0:03:50.5]} 23... Qf5 {[%clk
0:04:23.7]} 24. Qe1 {[%clk 0:03:41.6]} 24... Qf6 {[%clk 0:04:15.2]} 25. Re5
{[%clk 0:03:29.6]} 25... Qf4 {[%clk 0:04:11.3]} 26. Re4 {[%clk 0:03:26]} 26...
Qf5 {[%clk 0:04:09.6]} 27. a3 {[%clk 0:03:18.7]} 27... Nf4 {[%clk 0:04:03.9]}
28. Re8 {[%clk 0:03:09.9]} 28... Nd5 {[%clk 0:03:55.7]} 29. Rxf8+ {[%clk
0:03:08.3]} 29... Qxf8 {[%clk 0:03:55.6]} 30. Qf2 {[%clk 0:03:01.6]} 30... Qe7
{[%clk 0:03:53]} 31. Re1 {[%clk 0:03:00.3]} 31... Qg5 {[%clk 0:03:51.8]} 32.
Re8+ {[%clk 0:02:57.6]} 32... Kh7 {[%clk 0:03:51.3]} 33. Re5 {[%clk 0:02:52.4]}
33... Qc1+ {[%clk 0:03:47.6]} 34. Qf1 {[%clk 0:02:50.5]} 34... Qc2 {[%clk
0:03:38.6]} 35. Qf5+ {[%clk 0:02:47.3]} 35... Qxf5 {[%clk 0:03:37.4]} 36. Rxf5
{[%clk 0:02:46.1]} 36... Kg6 {[%clk 0:03:36.7]} 37. Re5 {[%clk 0:02:43.6]} 37...
Kf6 {[%clk 0:03:35.6]} 38. Kf2 {[%clk 0:02:41]} 38... Nf4 {[%clk 0:03:33.7]} 39.
Kf3 {[%clk 0:02:36.5]} 39... Nd5 {[%clk 0:03:32.4]} 40. g4 {[%clk 0:02:33.6]}
40... g6 {[%clk 0:03:30]} 41. h4 {[%clk 0:02:31.9]} 41... g5 {[%clk 0:03:29.2]}
42. h5 {[%clk 0:02:26.3]} 42... Kf7 {[%clk 0:03:26.5]} 43. Ke4 {[%clk
0:02:20.1]} 43... Kf6 {[%clk 0:03:20.8]} 44. Rf5+ {[%clk 0:02:18.4]} 44... Ke6
{[%clk 0:03:18.5]} 45. Rf8 {[%clk 0:02:11.9]} 45... Nf6+ {[%clk 0:03:17]} 46.
Kf3 {[%clk 0:02:06.6]} 46... Nd7 {[%clk 0:03:14.4]} 47. Rh8 {[%clk 0:02:04.6]}
47... Kd5 {[%clk 0:03:12.8]} 48. Rxh6 {[%clk 0:02:01.2]} 48... Kxd4 {[%clk
0:03:12.4]} 49. Rd6+ {[%clk 0:02:00]} 49... Kc4 {[%clk 0:03:10.2]} 50. Rxd7
{[%clk 0:01:58.9]} 50... Kb3 {[%clk 0:03:09.4]} 51. h6 {[%clk 0:01:56.4]} 51...
Kxa3 {[%clk 0:03:08.7]} 52. h7 {[%clk 0:01:55.5]} 52... Kxb4 {[%clk 0:03:08.4]}
53. h8=Q {[%clk 0:01:54.1]} 53... a5 {[%clk 0:03:07.2]} 54. Qd4+ {[%clk
0:01:52.1]} 54... Kb3 {[%clk 0:03:05.7]} 55. Qd1+ {[%clk 0:01:49.9]} 55... Kb4
{[%clk 0:03:05.6]} 56. Qc2 {[%clk 0:01:46.4]} 56... Kb5 {[%clk 0:03:03.7]} 57.
Rd4 {[%clk 0:01:43.8]} 57... b6 {[%clk 0:03:02.9]} 58. Qc4# {[%clk 0:01:42.7]}
1-0

[Event "Live Chess"]
[Site "Chess.com"]
[Date "2024.06.02"]
[Round "-"]
[White "Plimsol"]
[Black "CheckThis4"]
[Result "0-1"]
[WhiteElo "2390"]
[BlackElo "2682"]
[TimeControl "300"]
[EndTime "8:46:01 PDT"]
[Termination "CheckThis4 won on time"]

1. e4 {[%clk 0:04:58.6]} 1... d5 {[%clk 0:04:57.6]} 2. exd5 {[%clk 0:04:57.2]}
2... c6 {[%clk 0:04:57]} 3. c4 {[%clk 0:04:55.1]} 3... cxd5 {[%clk 0:04:55.5]}
4. d4 {[%clk 0:04:54.7]} 4... Nf6 {[%clk 0:04:54.5]} 5. Nc3 {[%clk 0:04:54.2]}
5... g6 {[%clk 0:04:53]} 6. Qb3 {[%clk 0:04:52.7]} 6... Bg7 {[%clk 0:04:51.1]}
7. cxd5 {[%clk 0:04:52.2]} 7... O-O {[%clk 0:04:49.3]} 8. Be2 {[%clk 0:04:51.8]}
8... Nbd7 {[%clk 0:04:42.2]} 9. Bf3 {[%clk 0:04:50.7]} 9... Nb6 {[%clk
0:04:41.3]} 10. Bg5 {[%clk 0:04:49.9]} 10... h6 {[%clk 0:04:35]} 11. Bxf6 {[%clk
0:04:46.2]} 11... Bxf6 {[%clk 0:04:34.2]} 12. Rd1 {[%clk 0:04:45.8]} 12... Bf5
{[%clk 0:04:28.8]} 13. Nge2 {[%clk 0:04:44.4]} 13... Qd7 {[%clk 0:04:27.6]} 14.
h3 {[%clk 0:04:43.5]} 14... g5 {[%clk 0:04:16.4]} 15. Ng3 {[%clk 0:04:41.1]}
15... Bg6 {[%clk 0:04:14.9]} 16. Nge4 {[%clk 0:04:34.6]} 16... Bg7 {[%clk
0:04:08.9]} 17. Nc5 {[%clk 0:04:32.6]} 17... Qc8 {[%clk 0:03:55.4]} 18. O-O
{[%clk 0:03:47.8]} 18... Bxd4 {[%clk 0:03:47.1]} 19. Rxd4 {[%clk 0:03:46.3]}
19... Qxc5 {[%clk 0:03:45]} 20. Rfd1 {[%clk 0:03:45.5]} 20... Rad8 {[%clk
0:03:40.3]} 21. Be4 {[%clk 0:02:53.9]} 21... e5 {[%clk 0:03:19.8]} 22. R4d2
{[%clk 0:02:43.3]} 22... f5 {[%clk 0:03:16]} 23. Bb1 {[%clk 0:02:19.5]} 23... e4
{[%clk 0:03:13.2]} 24. a3 {[%clk 0:01:45.1]} 24... Rd6 {[%clk 0:03:01.7]} 25.
Nb5 {[%clk 0:01:39.4]} 25... Rd7 {[%clk 0:03:00.8]} 26. Ba2 {[%clk 0:01:36.5]}
26... Bf7 {[%clk 0:02:55.7]} 27. Nc3 {[%clk 0:01:30.5]} 27... e3 {[%clk
0:02:47.7]} 28. fxe3 {[%clk 0:01:28.7]} 28... Qxe3+ {[%clk 0:02:47.2]} 29. Kh1
{[%clk 0:01:28.6]} 29... Rfd8 {[%clk 0:02:43.3]} 30. Qc2 {[%clk 0:01:27]} 30...
Qe5 {[%clk 0:02:37.9]} 31. Re2 {[%clk 0:01:23.2]} 31... Qf6 {[%clk 0:02:36.8]}
32. Rde1 {[%clk 0:01:20]} 32... Nxd5 {[%clk 0:02:20.7]} 33. Bxd5 {[%clk
0:01:15.5]} 33... Bxd5 {[%clk 0:02:17.8]} 34. Nxd5 {[%clk 0:01:11.7]} 34... Rxd5
{[%clk 0:02:17.3]} 35. Re6 {[%clk 0:01:10.9]} 35... Qf7 {[%clk 0:01:55.2]} 36.
Re7 {[%clk 0:01:09.4]} 36... Qf6 {[%clk 0:01:49.8]} 37. Qb3 {[%clk 0:01:08.6]}
37... Kf8 {[%clk 0:01:15.9]} 38. R7e6 {[%clk 0:01:01.1]} 38... Qf7 {[%clk
0:01:11]} 39. Rxh6 {[%clk 0:00:47.6]} 39... Kg7 {[%clk 0:01:09.2]} 40. Rhe6
{[%clk 0:00:43.8]} 40... Rd3 {[%clk 0:00:59.4]} 41. Qc2 {[%clk 0:00:25]} 41...
R8d7 {[%clk 0:00:56]} 42. Kh2 {[%clk 0:00:15.2]} 42... g4 {[%clk 0:00:50.6]} 43.
Qe2 {[%clk 0:00:09.1]} 43... g3+ {[%clk 0:00:45.1]} 44. Kg1 {[%clk 0:00:08.4]}
44... R3d6 {[%clk 0:00:32.8]} 45. Qe5+ {[%clk 0:00:06.9]} 45... Kh7 {[%clk
0:00:24.7]} 46. Rxd6 {[%clk 0:00:06.1]} 46... Rc7 {[%clk 0:00:22.9]} 47. Rf6
{[%clk 0:00:03]} 47... Qh5 {[%clk 0:00:18.3]} 48. Qxc7+ {[%clk 0:00:01.5]} 48...
Kg8 {[%clk 0:00:15.2]} 49. Qd8+ {[%clk 0:00:00.2]} 49... Qe8 {[%clk 0:00:15.1]}
0-1

[Event "Live Chess"]
[Site "Chess.com"]
[Date "2024.06.02"]
[Round "-"]
[White "grillage"]
[Black "DarranAS"]
[Result "1-0"]
[WhiteElo "1878"]
[BlackElo "1410"]
[TimeControl "300"]
[EndTime "8:46:02 PDT"]
[Termination "grillage won on time"]

1. d4 {[%clk 0:04:56.3]} 1... d5 {[%clk 0:04:57.6]} 2. Nf3 {[%clk 0:04:54.2]}
2... Nf6 {[%clk 0:04:54.6]} 3. c4 {[%clk 0:04:53.2]} 3... c6 {[%clk 0:04:53.4]}
4. Qc2 {[%clk 0:04:51.7]} 4... g6 {[%clk 0:04:25.5]} 5. Bf4 {[%clk 0:04:47.2]}
5... Bf5 {[%clk 0:04:22.3]} 6. Qb3 {[%clk 0:04:45.1]} 6... Qb6 {[%clk
0:04:16.9]} 7. e3 {[%clk 0:04:43.7]} 7... Qxb3 {[%clk 0:04:13.1]} 8. axb3 {[%clk
0:04:42.2]} 8... Nbd7 {[%clk 0:04:12.8]} 9. Nc3 {[%clk 0:04:34.4]} 9... Bg7
{[%clk 0:04:10.5]} 10. Be2 {[%clk 0:04:27.2]} 10... Nh5 {[%clk 0:04:08.4]} 11.
Bc7 {[%clk 0:04:21.7]} 11... O-O {[%clk 0:04:04.9]} 12. h3 {[%clk 0:04:19.9]}
12... Nhf6 {[%clk 0:04:01.5]} 13. O-O {[%clk 0:04:16.3]} 13... a6 {[%clk
0:03:49.6]} 14. c5 {[%clk 0:04:06.9]} 14... Ne4 {[%clk 0:03:40.1]} 15. Na4
{[%clk 0:03:56.2]} 15... Rfe8 {[%clk 0:03:11]} 16. Nb6 {[%clk 0:03:53.7]} 16...
Nxb6 {[%clk 0:03:08.7]} 17. Bxb6 {[%clk 0:03:52.5]} 17... e5 {[%clk 0:03:04.2]}
18. Nxe5 {[%clk 0:03:42.6]} 18... Bxe5 {[%clk 0:02:58.7]} 19. dxe5 {[%clk
0:03:41.2]} 19... Rxe5 {[%clk 0:02:58.4]} 20. Rfd1 {[%clk 0:03:14.5]} 20... Rae8
{[%clk 0:02:28.7]} 21. Ra4 {[%clk 0:03:06.5]} 21... Nf6 {[%clk 0:02:24.2]} 22.
Rb4 {[%clk 0:02:59.8]} 22... Nd7 {[%clk 0:02:19.4]} 23. Bc7 {[%clk 0:02:56.1]}
23... Nxc5 {[%clk 0:02:12.1]} 24. Bxe5 {[%clk 0:02:52.4]} 24... Rxe5 {[%clk
0:02:12]} 25. Rc1 {[%clk 0:02:45]} 25... Ne4 {[%clk 0:02:00.5]} 26. Rxb7 {[%clk
0:02:40.7]} 26... Re6 {[%clk 0:01:47.3]} 27. Bxa6 {[%clk 0:02:38.9]} 27... c5
{[%clk 0:01:33.9]} 28. Ra7 {[%clk 0:02:25.8]} 28... Rb6 {[%clk 0:01:10.9]} 29.
f3 {[%clk 0:02:15]} 29... Nd2 {[%clk 0:01:08.7]} 30. Rxc5 {[%clk 0:02:08.4]}
30... Be6 {[%clk 0:01:02.7]} 31. Bc8 {[%clk 0:01:56.6]} 31... Rxb3 {[%clk
0:00:59.1]} 32. Bxe6 {[%clk 0:01:54.5]} 32... Rxb2 {[%clk 0:00:51.9]} 33. Bxf7+
{[%clk 0:01:50.7]} 33... Kg7 {[%clk 0:00:48.4]} 34. Bxd5+ {[%clk 0:01:49]} 34...
Kh6 {[%clk 0:00:47.2]} 35. Rcc7 {[%clk 0:01:44.8]} 35... Rb1+ {[%clk 0:00:29.4]}
36. Kf2 {[%clk 0:01:43.6]} 36... Rb5 {[%clk 0:00:21.8]} 37. Rxh7+ {[%clk
0:01:36.7]} 37... Kg5 {[%clk 0:00:21.4]} 38. h4+ {[%clk 0:01:27.2]} 38... Kf6
{[%clk 0:00:19.3]} 39. Rhf7+ {[%clk 0:01:22.7]} 39... Ke5 {[%clk 0:00:16.7]} 40.
Bc6 {[%clk 0:01:15.2]} 40... Rb2 {[%clk 0:00:15.2]} 41. Rae7+ {[%clk 0:01:10.7]}
41... Kd6 {[%clk 0:00:14]} 42. Rd7+ {[%clk 0:01:04]} 42... Kxc6 {[%clk
0:00:11.2]} 43. Rc7+ {[%clk 0:01:02]} 43... Kd6 {[%clk 0:00:09.2]} 44. Rfd7+
{[%clk 0:01:01.5]} 44... Ke6 {[%clk 0:00:08.2]} 45. Kg3 {[%clk 0:00:58.1]} 45...
Rb3 {[%clk 0:00:05.1]} 46. Rxd2 {[%clk 0:00:55.7]} 46... Rxe3 {[%clk 0:00:04.4]}
47. Rdd7 {[%clk 0:00:52.2]} 47... Re2 {[%clk 0:00:02.7]} 48. Rg7 {[%clk
0:00:50.4]} 1-0

[Event "Live Chess"]
[Site "Chess.com"]
[Date "2024.06.02"]
[Round "-"]
[White "ivan_1968"]
[Black "TC2304"]
[Result "1-0"]
[WhiteElo "1837"]
[BlackElo "2316"]
[TimeControl "300"]
[EndTime "8:46:04 PDT"]
[Termination "ivan_1968 won by checkmate"]

1. d4 {[%clk 0:04:57.1]} 1... Nf6 {[%clk 0:04:56.8]} 2. c4 {[%clk 0:04:56.1]}
2... c5 {[%clk 0:04:56.5]} 3. dxc5 {[%clk 0:04:54.8]} 3... e6 {[%clk 0:04:55.5]}
4. Nc3 {[%clk 0:04:53.2]} 4... Bxc5 {[%clk 0:04:55]} 5. g3 {[%clk 0:04:52.4]}
5... O-O {[%clk 0:04:54.1]} 6. Bg2 {[%clk 0:04:51.2]} 6... Nc6 {[%clk 0:04:40]}
7. Nh3 {[%clk 0:04:45]} 7... d6 {[%clk 0:04:28.2]} 8. O-O {[%clk 0:04:41.9]}
8... Ne5 {[%clk 0:04:22.4]} 9. b3 {[%clk 0:04:39.2]} 9... Qc7 {[%clk 0:04:12.2]}
10. Bb2 {[%clk 0:04:29.3]} 10... Bd7 {[%clk 0:04:10.9]} 11. Nf4 {[%clk
0:04:25.7]} 11... Bc6 {[%clk 0:04:07.7]} 12. e4 {[%clk 0:04:24.4]} 12... Rfd8
{[%clk 0:03:51.9]} 13. Qe2 {[%clk 0:04:21.3]} 13... Neg4 {[%clk 0:03:39.9]} 14.
Nd3 {[%clk 0:04:07.3]} 14... Bd4 {[%clk 0:03:36.2]} 15. h3 {[%clk 0:04:04.5]}
15... Nh6 {[%clk 0:03:30.5]} 16. Rad1 {[%clk 0:03:54.3]} 16... e5 {[%clk
0:03:29.4]} 17. Kh2 {[%clk 0:03:19]} 17... b6 {[%clk 0:03:12.9]} 18. Nd5 {[%clk
0:03:12.5]} 18... Bxd5 {[%clk 0:03:08.9]} 19. cxd5 {[%clk 0:03:01]} 19... Bxb2
{[%clk 0:03:07.8]} 20. Qxb2 {[%clk 0:02:59.5]} 20... Rac8 {[%clk 0:03:07.3]} 21.
Rc1 {[%clk 0:02:58.1]} 21... Qb7 {[%clk 0:03:06.4]} 22. Nb4 {[%clk 0:02:52.2]}
22... Nd7 {[%clk 0:02:56]} 23. Nc6 {[%clk 0:02:49.5]} 23... Re8 {[%clk
0:02:54.6]} 24. b4 {[%clk 0:02:43.4]} 24... b5 {[%clk 0:02:49.8]} 25. Rc2 {[%clk
0:02:40.3]} 25... f6 {[%clk 0:02:46.7]} 26. Rfc1 {[%clk 0:02:37.2]} 26... Kf8
{[%clk 0:02:46.3]} 27. Bf3 {[%clk 0:02:26.5]} 27... Nf7 {[%clk 0:02:34.2]} 28.
Bg4 {[%clk 0:02:24.9]} 28... Nd8 {[%clk 0:02:33.2]} 29. Bxd7 {[%clk 0:02:14.6]}
29... Qxd7 {[%clk 0:02:30.7]} 30. Nxe5 {[%clk 0:02:13.7]} 30... fxe5 {[%clk
0:02:11]} 31. Rxc8 {[%clk 0:02:12.1]} 31... Nf7 {[%clk 0:02:09.7]} 32. Qc3
{[%clk 0:02:08.9]} 32... Nd8 {[%clk 0:01:52]} 33. Qc7 {[%clk 0:01:55.9]} 33...
Ke7 {[%clk 0:01:45.7]} 34. Qxd7+ {[%clk 0:01:53.3]} 34... Kxd7 {[%clk 0:01:43]}
35. R8c7# {[%clk 0:01:52.8]} 1-0